[Event "Niedersachsen-ch 2020"]
[Site "Verden-Aller"]
[Date "2020.01.05"]
[Round "7.12"]
[White "Wetjen, Fabian"]
[Black "Buchloh, Adrian"]
[Result "1/2-1/2"]
[ECO "D00"]
[WhiteElo "1748"]
[BlackElo "1549"]
[Annotator "NA"]
[PlyCount "59"]
[EventDate "2020.01.02"]
[EventType "swiss"]
[EventCountry "GER"]
[SourceTitle "playchess.com"]
[Source "ChessBase"]
[SourceQuality "1"]
[TimeControl "40/5400+30:1800+30"]

1. d4 {[%emt 0:00:00]} d5 {[%emt 0:00:00]} 2. Bf4 {[%emt 0:00:00]} c5 {[%emt 0:00:00]} 3. e3 {[%emt 0:00:00]} Nf6 {[%emt 0:00:00]} 4. Nd2 {[%emt 0:00:03]} Nc6 {[%emt 0:00:00]} 5. c3 {[%emt 0:00:09]} Bf5 {[%emt 0:00:47]} 6. Ngf3 {[%emt 0:00:21]} e6 {[%emt 0:00:27]} 7. Qb3 {[%emt 0:01:01]} Qc8 {[%emt 0:03:57]} 8. c4 {[%emt 0:02:55]} cxd4 {[%emt 0:08:19]} 9. Nxd4 {[%emt 0:00:24]} Nxd4 {[%emt 0:00:49]} 10. exd4 {[%emt 0:00:32]} Be7 {[%emt 0:04:18]} 11. cxd5 {[%emt 0:09:39]} exd5 {[%emt 0:00:11]} 12. Bb5+ {[%emt 0:00:29]} Bd7 {[%emt 0:00:24]} 13. Bd3 {[%emt 0:01:01]} O-O {[%emt 0:04:05]} 14. O-O {[%emt 0:02:03]} Re8 {[%emt 0:08:49]} 15. Rac1 {[%emt 0:04:48]} Bc6 {[%emt 0:01:59]} 16. h3 {[%emt 0:00:23]} Qd7 {[%emt 0:08:25]} 17. Qc2 {[%emt 0:09:10]} Bd6 {[%emt 0:09:08]} 18. Bxd6 {[%emt 0:07:42]} Qxd6 {[%emt 0:00:06]} 19. Nf3 {[%emt 0:00:42]} Rac8 {[%emt 0:11:31]} 20. Qb1 {[%emt 0:04:55]} Ne4 {[%emt 0:07:54]} 21. Rfd1 {[%emt 0:11:47]} Qf4 {[%emt 0:07:37]} 22. Re1 {[%emt 0:13:57]} f6 {[%emt 0:07:30]} 23. Re3 {[%emt 0:05:18]} g6 {[%emt 0:06:32]} 24. Rce1 {[%emt 0:03:22]} Kf7 {[%emt 0:02:03]} 25. Qd1 {[%emt 0:05:33]} Nd6 {[%emt 0:05:24]} 26. g3 {[%emt 0:00:31]} Qh6 {[%emt 0:00:20]} 27. Kg2 {[%emt 0:01:37]} Bd7 {[%emt 0:00:16]} 28. g4 {[%emt 0:01:41]} Qf4 {[%emt 0:00:27]} 29. Qb3 {[%emt 0:02:39]} Bc6 {[%emt 0:00:13]} 30. Rxe8 {[%emt 0:01:33]} 1/2-1/2